fUSD/lending_fUSD_20241123
["ID","MTS","AMOUNT","RATE_DAILY","PERIOD"]
[343086635,1732342884846,-500.0,0.00053079,120]
[343086636,1732342884875,-500.0,0.00053079,120]
[343086637,1732342884902,-500.0,0.00053079,120]
[343086638,1732342884935,-606.1,0.00053079,120]
[343086639,1732342884962,-964.72,0.00053079,120]
[343086640,1732342884989,-670.32,0.00053079,120]
[343086641,1732342885016,-500.0,0.00053079,120]
[343086642,1732342885044,-505.41420112,0.00053079,120]
[343086643,1732342885071,-500.0,0.00053079,120]
[343086644,1732342885098,-1682.92,0.00053079,120]
[343086645,1732342885124,-501.38474134,0.00053079,120]
[343086646,1732342885151,-500.0,0.00053079,120]
[343086647,1732342885182,-500.0,0.00053079,120]
[343086648,1732342885209,-500.0,0.00053079,120]
[343086649,1732342885237,-500.0,0.00053079,120]
[343086650,1732342885264,-500.0,0.00053079,120]
[343086651,1732342885295,-2526.94,0.00053079,120]
[343086652,1732342885481,-500.0,0.00053079,120]
[343086653,1732342885515,-506.04843079,0.00053079,120]
[343086654,1732342885544,-1052.38,0.00053079,120]
[343086655,1732342885573,-500.0,0.00053079,120]
[343086656,1732342885608,-1198.13,0.00053079,120]
[343086657,1732342885637,-1139.38,0.00053079,120]
[343086658,1732342885666,-885.1,0.00053079,120]
[343086659,1732342885695,-500.0,0.00053079,120]
[343086660,1732342885722,-533.98568794,0.00053079,120]
[343086661,1732342885753,-500.0,0.00053079,120]
[343086662,1732342885780,-500.0,0.00053079,120]
[343086663,1732342885810,-500.0,0.00053079,120]
[343086664,1732342885841,-401.69153721,0.00053079,120]
[343086665,1732342885869,-61.64167872,0.00053079,120]
[343086666,1732342885988,-438.35832128,0.00053079,120]
[343086667,1732342886018,-500.0,0.00053079,120]
[343086668,1732342886048,-500.0,0.00053079,120]
[343086669,1732342886077,-500.0,0.00053079,120]
[343086670,1732342886105,-502.8088848,0.00053079,120]
[343086671,1732342886134,-500.0,0.00053079,120]
[343086672,1732342886162,-501.9917497,0.00053079,120]
[343086673,1732342886192,-2841.89,0.00053079,120]
[343086674,1732342886221,-500.0,0.00053079,120]
[343086675,1732342886248,-500.0,0.00053079,120]
[343086676,1732342886276,-500.0,0.00053079,120]
[343086677,1732342886303,-500.0,0.00053079,120]
[343086678,1732342886329,-504.22346031,0.00053079,120]
[343086679,1732342886355,-500.0,0.00053079,120]
[343086680,1732342886382,-500.0,0.00053079,120]
[343086681,1732342886409,-500.0,0.00053079,120]
[343086682,1732342886437,-1029.6,0.00053079,120]
[343086683,1732342886465,-1057.58,0.00053079,120]
[343086684,1732342886490,-500.0,0.00053079,120]
[343086685,1732342886516,-500.0,0.00053079,120]
[343086686,1732342886541,-1569.78,0.00053079,120]
[343086687,1732342886568,-500.0,0.00053079,120]
[343086688,1732342886595,-500.0,0.00053079,120]
[343086689,1732342886623,-500.0,0.00053079,120]
[343086690,1732342886652,-500.0,0.00053079,120]
[343086691,1732342886681,-500.0,0.00053079,120]
[343086692,1732342886709,-500.0,0.00053079,120]
[343086693,1732342886738,-500.0,0.00053079,120]
[343086694,1732342886766,-500.0,0.00053079,120]
[343086695,1732342886793,-468.6,0.0005308,120]
[343086696,1732342886822,-151.0,0.0005308,120]
[343086697,1732342886848,-500.0,0.0005308,120]
[343086698,1732342886874,-151.0,0.0005308,120]
[343086699,1732342886901,-500.0,0.0005308,120]
[343086700,1732342886929,-500.0,0.0005308,120]
[343086701,1732342886957,-500.0,0.0005308,120]
[343086702,1732342886983,-500.0,0.0005308,120]
[343086703,1732342887010,-500.0,0.0005308,120]
[343086704,1732342887039,-500.0,0.0005308,120]
[343086705,1732342887066,-500.0,0.0005308,120]
[343086706,1732342887101,-1255.28,0.0005308,120]
[343086707,1732342887130,-27.88758391,0.0005308,120]
[343086708,1732342887177,-1227.39241609,0.0005308,120]
[343086709,1732342887226,-500.0,0.0005308,120]
[343086710,1732342887253,-1255.28,0.0005308,120]
[343086711,1732342887280,-500.0,0.0005308,120]
[343086712,1732342887308,-1255.28,0.0005308,120]
[343086713,1732342887336,-1255.28,0.0005308,120]
[343086714,1732342887364,-1255.28,0.0005308,120]
[343086715,1732342887392,-2532.3,0.0005308,120]
[343086716,1732342887418,-500.0,0.0005308,120]
[343086717,1732342887447,-500.0,0.0005308,120]
[343086718,1732342887475,-748.55,0.0005308,120]
[343086719,1732342887502,-748.55,0.0005308,120]
[343086720,1732342887528,-748.55,0.0005308,120]
[343086721,1732342887556,-748.55,0.0005308,120]
[343086722,1732342887587,-748.55,0.0005308,120]
[343086723,1732342887615,-748.55,0.0005308,120]
[343086724,1732342887641,-516.88,0.0005308,120]
[343086725,1732342887668,-500.0,0.0005308,120]
[343086726,1732342887704,-351.20019662,0.0005308,120]
[343086727,1732342887730,-151.0,0.0005308,120]
[343086728,1732342887870,-1614.64,0.0005308,120]
[343086729,1732342887897,-1364.09,0.0005308,120]
[343086730,1732342887924,-500.0,0.0005308,120]
[343086731,1732342887954,-221.4088017,0.0005308,120]
[343086732,1732342887980,-3335.85,0.0005308,120]
[343086733,1732342888007,-1172.81858559,0.0005308,120]
[343086734,1732342888058,-2163.03141441,0.0005308,120]
[343086735,1732342888085,-3335.85,0.0005308,120]
[343086736,1732342888112,-3335.85,0.0005308,120]
[343086737,1732342888139,-3335.85,0.0005308,120]
[343086738,1732342888165,-3335.85,0.0005308,120]
[343086739,1732342888197,-500.0,0.0005308,120]
[343086740,1732342888225,-500.0,0.0005308,120]
[343086741,1732342888253,-500.0,0.0005308,120]
[343086742,1732342888280,-500.0,0.0005308,120]
[343086743,1732342888308,-500.0,0.0005308,120]
[343086744,1732342888335,-400.0,0.0005308,120]
[343086745,1732342888362,-500.0,0.0005308,120]
[343086746,1732342888390,-500.0,0.0005308,120]
[343086747,1732342888416,-270.55,0.0005308,120]
[343086748,1732342888446,-500.0,0.0005308,120]
[343086749,1732342888473,-500.0,0.0005308,120]
[343086750,1732342888500,-500.0,0.0005308,120]
[343086751,1732342888525,-964.72,0.0005308,120]
[343086752,1732342888556,-606.1,0.0005308,120]
[343086753,1732342888585,-787.73,0.0005308,120]
[343086754,1732342888612,-787.73,0.0005308,120]
[343086755,1732342888638,-500.0,0.0005308,120]
[343086756,1732342888667,-176.73858559,0.0005308,120]
[343086757,1732342888716,-610.99141441,0.0005308,120]
[343086758,1732342888743,-787.73,0.0005308,120]
[343086759,1732342888771,-787.73,0.0005308,120]
[343086760,1732342888797,-787.73,0.0005308,120]
[343086761,1732342888824,-670.32,0.0005308,120]
[343086762,1732342888850,-500.0,0.0005308,120]
[343086763,1732342888876,-2639.45,0.0005308,120]
[343086764,1732342888902,-2639.45,0.0005308,120]
[343086765,1732342888930,-2639.45,0.0005308,120]
[343086766,1732342888956,-2639.45,0.0005308,120]
[343086767,1732342888982,-2639.45,0.0005308,120]
[343086768,1732342889008,-2639.45,0.0005308,120]
[343086769,1732342889034,-500.0,0.0005308,120]
[343086770,1732342889061,-1682.92,0.0005308,120]
[343086771,1732342889087,-500.0,0.0005308,120]
[343086772,1732342889114,-695.72,0.0005308,120]
[343086773,1732342889141,-522.59067137,0.0005308,120]
[343086774,1732342889167,-695.72,0.0005308,120]
[343086775,1732342889195,-421.84791422,0.0005308,120]
[343086776,1732342889464,-273.87208578,0.0005308,120]
[343086777,1732342889491,-495.00393187,0.0005308,120]
[343086778,1732342889518,-695.72,0.0005308,120]
[343086779,1732342889544,-695.72,0.0005308,120]
[343086780,1732342889571,-695.72,0.0005308,120]
[343086781,1732342889597,-500.0,0.0005308,120]
[343086782,1732342889626,-500.0,0.0005308,120]
[343086783,1732342889656,-500.0,0.0005308,120]
[343086784,1732342889685,-500.0,0.0005308,120]
[343086785,1732342889712,-267.19,0.0005308,120]
[343086786,1732342889740,-317.80208001,0.0005308,120]
[343086787,1732342889771,-500.0,0.0005308,120]
[343086788,1732342889797,-500.0,0.0005308,120]
[343086789,1732342889823,-500.0,0.0005308,120]
[343086790,1732342889848,-500.0,0.0005308,120]
[343086791,1732342889875,-500.0,0.0005308,120]
[343086792,1732342889901,-346.42105939,0.0005308,120]
[343086793,1732342889929,-2526.94,0.0005308,120]
[343086794,1732342889955,-1052.38,0.0005308,120]
[343086795,1732342889980,-500.0,0.0005308,120]
[343086796,1732342890007,-1198.13,0.0005308,120]
[343086797,1732342890037,-500.0,0.0005308,120]
[343086798,1732342890065,-1139.38,0.0005308,120]
[343086799,1732342890092,-885.1,0.0005308,120]
[343086800,1732342890122,-500.0,0.0005308,120]
[343086801,1732342890150,-522.57796667,0.0005308,120]
[343086802,1732342890179,-500.0,0.0005308,120]
[343086803,1732342890337,-332.02763216,0.0005308,120]
[343086804,1732342890367,-500.0,0.0005308,120]
[343086805,1732342890396,-500.0,0.0005308,120]
[343086806,1732342890425,-2841.89,0.0005308,120]
[343086807,1732342890453,-500.0,0.0005308,120]
[343086808,1732342890482,-500.0,0.0005308,120]
[343086809,1732342890509,-738.15,0.0005308,120]
[343086810,1732342890538,-738.15,0.0005308,120]
[343086811,1732342890567,-500.0,0.0005308,120]
[343086812,1732342890597,-237.82524412,0.0005308,120]
[343086813,1732342890861,-500.32475588,0.0005308,120]
[343086814,1732342890891,-738.15,0.0005308,120]
[343086815,1732342890920,-738.15,0.0005308,120]
[343086816,1732342890950,-738.15,0.0005308,120]
[343086817,1732342890977,-498.98232072,0.0005308,120]
[343086818,1732342891004,-1057.58,0.0005308,120]
[343086819,1732342891031,-1029.6,0.0005308,120]
[343086820,1732342891057,-500.0,0.0005308,120]
[343086821,1732342891084,-751.95,0.0005308,120]
[343086822,1732342891112,-1569.78,0.0005308,120]
[343086823,1732342891140,-751.95,0.0005308,120]
[343086824,1732342891168,-751.95,0.0005308,120]
[343086825,1732342891197,-751.95,0.0005308,120]
[343086826,1732342891224,-751.95,0.0005308,120]
[343086827,1732342891250,-751.95,0.0005308,120]
[343086828,1732342891278,-500.0,0.0005308,120]
[343086829,1732342891304,-500.0,0.0005308,120]
[343086830,1732342891331,-561.84,0.0005308,120]
[343086831,1732342891359,-598.92,0.0005308,120]
[343086832,1732342891387,-598.92,0.0005308,120]
[343086833,1732342891414,-598.92,0.0005308,120]
[343086834,1732342891441,-598.92,0.0005308,120]
[343086835,1732342891468,-598.92,0.0005308,120]
[343086836,1732342891498,-598.92,0.0005308,120]
[343086837,1732342891526,-156.19,0.0005308,120]
[343086838,1732342891552,-553.02524452,0.0005308,120]
[343086839,1732342891583,-500.0,0.0005308,120]
[343086840,1732342891609,-151.0,0.00053081,120]
[343086841,1732342891637,-151.0,0.00053081,120]
[343086842,1732342891665,-300.89724,0.00053081,120]
[343086843,1732342891691,-151.0,0.00053081,120]
[343086844,1732342891718,-151.0,0.00053081,120]
[343086845,1732342891745,-1716.09872863,0.00053082,30]
[343086846,1732342891772,-1000.0,0.00053082,30]
[343086847,1732342891798,-500.0,0.00053082,120]
[343086848,1732342891825,-500.0,0.00053082,2]
[343086849,1732342891851,-500.0,0.00053082,120]
[343086850,1732342891877,-500.0,0.00053082,120]
[343086851,1732342891903,-500.0,0.00053082,120]
[343086852,1732342891933,-500.0,0.00053082,2]
[343086853,1732342891959,-132.01171025,0.00053082,120]
[343086854,1732342892049,-500.0,0.00053079,120]
[343086855,1732342892076,-500.0,0.00053079,120]
[343086856,1732342892104,-367.98828975,0.00053082,120]
[343086857,1732342892132,-500.0,0.00053082,2]
[343086858,1732342892160,-500.0,0.00053082,2]
[343086859,1732342892349,-1437.85,0.00053082,120]
[343086860,1732342892379,-500.0,0.00053082,2]
[343086861,1732342892409,-1437.85,0.00053082,120]
[343086862,1732342892439,-1437.85,0.00053082,120]
[343086863,1732342892468,-1437.85,0.00053082,120]
[343086864,1732342892497,-1437.85,0.00053082,120]
[343086865,1732342892525,-500.0,0.00053082,120]
[343086866,1732342892553,-500.0,0.00053082,120]
[343086867,1732342892584,-500.0,0.00053082,120]
[343086868,1732342892612,-500.0,0.00053082,120]
[343086869,1732342892640,-500.0,0.00053082,120]
[343086870,1732342892669,-500.0,0.00053082,120]
[343086871,1732342892698,-509.28869429,0.00053082,120]
[343086872,1732342892726,-2080.42,0.00053082,120]
[343086873,1732342892754,-2080.42,0.00053082,120]
[343086874,1732342892782,-2080.42,0.00053082,120]
[343086875,1732342892809,-2294.98,0.00053082,120]
[343086876,1732342892837,-2080.42,0.00053082,120]
[343086877,1732342892867,-816.81301596,0.00053082,120]
[343086878,1732342893055,-1478.16698404,0.00053082,120]
[343086879,1732342893087,-2080.42,0.00053082,120]
[343086880,1732342893118,-2294.98,0.00053082,120]
[343086881,1732342893147,-2294.98,0.00053082,120]
[343086882,1732342893179,-2294.98,0.00053082,120]
[343086883,1732342893210,-500.0,0.00053082,120]
[343086884,1732342893242,-500.0,0.00053082,120]
[343086885,1732342893271,-537.37656759,0.00053082,120]
[343086886,1732342893301,-500.0,0.00053082,120]
[343086887,1732342893331,-504.40420452,0.00053082,120]
[343086888,1732342893359,-403.54713606,0.00053082,120]
[343086889,1732342893390,-2322.54,0.00053082,120]
[343086890,1732342893419,-2322.54,0.00053082,120]
[343086891,1732342893452,-2322.54,0.00053082,120]
[343086892,1732342893481,-2322.54,0.00053082,120]
[343086893,1732342893509,-2320.98510779,0.00053082,120]
[343086894,1732342894178,-885.74,0.00053079,120]
[343086895,1732342894207,-500.0,0.00053079,120]
[343086896,1732342894239,-885.74,0.0005308,120]
[343086897,1732342894272,-1.55489221,0.00053082,120]
[343086898,1732342894303,-264.22496232,0.00053082,120]
[343086899,1732342894338,-856.27,0.00053082,120]
[343086900,1732342894369,-500.0,0.00053082,120]
[343086901,1732342894399,-856.27,0.00053082,120]
[343086902,1732342894427,-506.2807099,0.00053082,120]
[343086903,1732342894456,-856.27,0.00053082,120]
[343086904,1732342894485,-856.27,0.00053082,120]
[343086905,1732342894520,-856.27,0.00053082,120]
[343086906,1732342894553,-1943.17,0.00053082,120]
[343086907,1732342894586,-500.0,0.00053082,120]
[343086908,1732342894617,-1943.17,0.00053082,120]
[343086909,1732342894647,-533.52784534,0.00053082,120]
[343086910,1732342894677,-1943.17,0.00053082,120]
[343086911,1732342894706,-558.97298507,0.00053082,120]
[343086912,1732342894735,-1943.17,0.00053082,120]
[343086913,1732342894764,-1943.17,0.00053082,120]
[343086914,1732342894793,-622.57,0.00053082,120]
[343086915,1732342894821,-622.57,0.00053082,120]
[343086916,1732342894849,-622.57,0.00053082,120]
[343086917,1732342894875,-622.57,0.00053082,120]
[343086918,1732342894903,-622.57,0.00053082,120]
[343086919,1732342894931,-2266.87,0.00053082,120]
[343086920,1732342894961,-487.03860516,0.00053082,120]
[343086921,1732342903279,-500.0,0.00053073,2]
[343086922,1732342903306,-500.0,0.00053079,120]
[343086923,1732342903334,-500.0,0.00053079,120]
[343086924,1732342903361,-500.0,0.00053079,120]
[343086925,1732342903389,-500.0,0.00053079,120]
[343086926,1732342903418,-500.0,0.00053079,120]
[343086927,1732342903451,-2836.74,0.00053079,120]
[343086928,1732342903479,-500.0,0.0005308,120]
[343086929,1732342903507,-2836.74,0.0005308,120]
[343086930,1732342903534,-504.98320976,0.0005308,120]
[343086931,1732342903563,-1197.68,0.0005308,120]
[343086932,1732342903593,-1779.83139484,0.00053082,120]
[343086933,1732342903623,-2266.87,0.00053082,120]
[343086934,1732342903653,-500.0,0.00053082,120]
[343086935,1732342903683,-2266.87,0.00053082,120]
[343086936,1732342903710,-500.0,0.00053082,120]
[343086937,1732342903739,-2266.87,0.00053082,120]
[343086938,1732342903767,-500.0,0.00053082,120]
[343086939,1732342903795,-503.03794557,0.00053082,120]
[343086940,1732342903822,-1032.48,0.00053082,120]
[343086941,1732342903853,-1032.48,0.00053082,120]
[343086942,1732342903880,-1032.48,0.00053082,120]
[343086943,1732342903910,-442.93744983,0.00053082,120]
[343086944,1732342904318,-500.0,0.00053079,120]
[343086945,1732342904347,-1197.68,0.0005308,120]
[343086946,1732342904376,-1197.68,0.0005308,120]
[343086947,1732342904406,-1197.68,0.0005308,120]
[343086948,1732342904435,-500.0,0.0005308,120]
[343086949,1732342904462,-158.68255017,0.00053082,120]
[343086950,1732342904574,-500.0,0.00053082,120]
[343086951,1732342904623,-1032.48,0.00053082,120]
[343086952,1732342904653,-601.62,0.00053082,120]
[343086953,1732342904684,-508.89873463,0.00053082,120]
[343086954,1732342904714,-1032.48,0.00053082,120]
[343086955,1732342904744,-601.62,0.00053082,120]
[343086956,1732342904773,-601.62,0.00053082,120]
[343086957,1732342904802,-601.62,0.00053082,120]
[343086958,1732342904832,-500.0,0.00053082,120]
[343086959,1732342904859,-500.0,0.00053082,120]
[343086960,1732342904889,-500.0,0.00053082,120]
[343086961,1732342904918,-317.17081904,0.00053082,120]
[343086962,1732342904948,-500.0,0.00053082,120]
[343086963,1732342904978,-500.0,0.00053082,120]
[343086964,1732342905007,-500.0,0.00053082,120]
[343086965,1732342905037,-500.0,0.00053082,120]
[343086966,1732342905066,-500.0,0.00053082,120]
[343086967,1732342905095,-500.0,0.00053082,120]
[343086968,1732342905124,-500.0,0.00053082,120]
[343086969,1732342905153,-500.0,0.00053082,120]
[343086970,1732342905184,-500.0,0.00053082,120]
[343086971,1732342905216,-536.21512663,0.00053082,120]
[343086972,1732342905246,-500.0,0.00053082,120]
[343086973,1732342905275,-238.70728782,0.00053082,120]
[343086974,1732342905307,-4176.05,0.00053082,120]
[343086975,1732342905338,-2999.79548171,0.00053082,120]
[343086976,1732342905423,-971.4,0.00053079,120]
[343086977,1732342905454,-1197.68,0.0005308,120]
[343086978,1732342905483,-500.0,0.0005308,120]
[343086979,1732342905512,-1197.68,0.0005308,120]
[343086980,1732342905540,-547.47375715,0.0005308,120]
[343086981,1732342905570,-500.0,0.0005308,120]
[343086982,1732342905602,-500.0,0.0005308,120]
[343086983,1732342905642,-971.4,0.0005308,120]
[343086984,1732342905681,-500.0,0.0005308,120]
[343086985,1732342905728,-1176.25451829,0.00053082,120]
[343086986,1732342905769,-4176.05,0.00053082,120]
[343086987,1732342905812,-4176.05,0.00053082,120]
[343086988,1732342905856,-275.73858212,0.00053082,120]
[343086989,1732342905898,-4176.05,0.00053082,120]
[343086990,1732342905943,-500.0,0.00053082,120]
[343086991,1732342905984,-500.0,0.00053082,120]
[343086992,1732342906021,-500.0,0.00053082,120]
[343086993,1732342906063,-500.0,0.00053082,120]
[343086994,1732342906099,-500.0,0.00053082,120]
[343086995,1732342906139,-500.0,0.00053082,120]
[343086996,1732342906177,-500.0,0.00053082,120]
[343086997,1732342906217,-500.0,0.00053083,120]
[343086998,1732342906252,-134.22314244,0.00053083,120]
[343086999,1732342906494,-500.0,0.0005308,120]
[343087000,1732342906529,-1548.69685756,0.00053083,120]
[343087001,1732342906563,-1052.38,0.00053083,120]
[343087002,1732342906599,-1198.13,0.00053083,120]
[343087003,1732342906634,-1569.78,0.00053083,120]
[343087004,1732342906672,-500.0,0.00053083,120]
[343087005,1732342906707,-885.74,0.00053083,120]
[343087006,1732342906743,-500.0,0.00053083,120]
[343087007,1732342906775,-971.4,0.00053083,120]
[343087008,1732342906804,-151.0,0.00053084,120]
[343087009,1732342906989,-500.0,0.00053084,120]
[343087010,1732342907030,-500.0,0.00053084,120]
[343087011,1732342907059,-2532.3,0.00053084,120]
[343087012,1732342907087,-1614.64,0.00053084,120]
[343087013,1732342907113,-151.0,0.00053084,120]
[343087014,1732342907140,-1364.09,0.00053084,120]
[343087015,1732342907168,-500.0,0.00053084,120]
[343087016,1732342907195,-500.0,0.00053084,120]
[343087017,1732342907222,-964.72,0.00053084,120]
[343087018,1732342907250,-606.1,0.00053084,120]
[343087019,1732342907278,-150.0,0.00053084,2]
[343087020,1732342907305,-150.0,0.00053084,2]
[343087021,1732342907332,-150.0,0.00053084,2]
[343087022,1732342907360,-670.32,0.00053084,120]
[343087023,1732342907389,-150.0,0.00053084,2]
[343087024,1732342907417,-150.0,0.00053084,2]
[343087025,1732342907448,-150.0,0.00053084,2]
[343087026,1732342907475,-150.0,0.00053084,2]
[343087027,1732342907502,-275.95262215,0.00053084,2]
[343087028,1732342907529,-1682.92,0.00053084,120]
[343087029,1732342907556,-2526.94,0.00053084,120]
[343087030,1732342907584,-683.89052029,0.00053084,120]
[343087031,1732342907682,-368.48947971,0.00053084,120]
[343087032,1732342907715,-1198.13,0.00053084,120]
[343087033,1732342907745,-885.1,0.00053084,120]
[343087034,1732342907774,-1139.38,0.00053084,120]
[343087035,1732342907803,-201.38,0.00053084,120]
[343087036,1732342907831,-2841.89,0.00053084,120]
[343087037,1732342907859,-399.16,0.00053084,120]
[343087038,1732342907887,-500.0,0.00053084,120]
[343087039,1732342907914,-500.0,0.00053084,120]
[343087040,1732342907943,-1029.6,0.00053084,120]
[343087041,1732342907970,-1057.58,0.00053084,120]
[343087042,1732342908002,-1569.78,0.00053084,120]
[343087043,1732342908031,-885.74,0.00053084,120]
[343087044,1732342908062,-500.0,0.00053084,120]
[343087045,1732342908092,-2836.74,0.00053084,120]
[343087046,1732342908121,-971.4,0.00053084,120]
[343087047,1732342908151,-2713.18414526,0.00053085,120]
[343087048,1732342908180,-2773.42,0.00053085,120]
[343087049,1732342908218,-1926.14076,0.00053085,120]
[343087050,1732342908250,-702.88561503,0.00053085,120]
[343087051,1732342908364,-500.0,0.00053079,120]
[343087052,1732342908394,-500.0,0.00053082,31]
[343087053,1732342908425,-500.0,0.00053082,31]
[343087054,1732342908457,-281.75288013,0.00053082,31]
[343087055,1732342908489,-2070.53438497,0.00053085,120]
[343087056,1732342908520,-1926.14076,0.00053085,120]
[343087057,1732342908551,-2773.42,0.00053085,120]
[343087058,1732342908582,-2773.42,0.00053085,120]
[343087059,1732342908613,-1926.14076,0.00053085,120]
[343087060,1732342908643,-620.37,0.00053085,120]
[343087061,1732342908674,-620.37,0.00053085,120]
[343087062,1732342908704,-620.37,0.00053085,120]
[343087063,1732342908732,-324.937035,0.00053085,120]
[343087064,1732342908762,-620.37,0.00053085,120]
[343087065,1732342908790,-620.37,0.00053085,120]
[343087066,1732342908817,-324.937035,0.00053085,120]
[343087067,1732342908845,-620.37,0.00053085,120]
[343087068,1732342908873,-324.937035,0.00053085,120]
[343087069,1732342908901,-1926.14076,0.00053085,120]
[343087070,1732342908929,-1926.14076,0.00053085,120]
[343087071,1732342908959,-1926.14076,0.00053085,120]
[343087072,1732342908988,-1273.1378299,0.00053085,120]
[343087073,1732342909508,-259.11766851,0.00053082,120]
[343087074,1732342909543,-1071.5221701,0.00053085,120]
[343087075,1732342909575,-2344.66,0.00053085,120]
[343087076,1732342909603,-2344.66,0.00053085,120]
[343087077,1732342909632,-2344.66,0.00053085,120]
[343087078,1732342909662,-2344.66,0.00053085,120]
[343087079,1732342909692,-2344.66,0.00053085,120]
[343087080,1732342909722,-2779.56,0.00053085,120]
[343087081,1732342909753,-780.66,0.00053085,120]
[343087082,1732342909784,-2779.56,0.00053085,120]
[343087083,1732342909814,-780.66,0.00053085,120]
[343087084,1732342909841,-2779.56,0.00053085,120]
[343087085,1732342909871,-2046.06016139,0.00053085,120]
[343087086,1732342910495,-500.0,0.00053079,120]
[343087087,1732342910524,-500.0,0.0005308,120]
[343087088,1732342910554,-500.0,0.0005308,120]
[343087089,1732342910585,-733.49983861,0.00053085,120]
[343087090,1732342910613,-2779.56,0.00053085,120]
[343087091,1732342910643,-780.66,0.00053085,120]
[343087092,1732342910674,-2779.56,0.00053085,120]
[343087093,1732342910709,-780.66,0.00053085,120]
[343087094,1732342910739,-780.66,0.00053085,120]
[343087095,1732342910768,-780.66,0.00053085,120]
[343087096,1732342910799,-766.82,0.00053085,120]
[343087097,1732342910829,-766.82,0.00053085,120]
[343087098,1732342910859,-766.82,0.00053085,120]
[343087099,1732342910887,-766.82,0.00053085,120]
[343087100,1732342910918,-766.82,0.00053085,120]
[343087101,1732342910945,-2127.56,0.00053085,120]
[343087102,1732342910974,-766.82,0.00053085,120]
[343087103,1732342911002,-2127.56,0.00053085,120]
[343087104,1732342911030,-2127.56,0.00053085,120]
[343087105,1732342911061,-2127.56,0.00053085,120]
[343087106,1732342911094,-973.58016139,0.00053085,120]
[343087107,1732342911668,-1153.97983861,0.00053085,120]
[343087108,1732342911698,-2127.56,0.00053085,120]
[343087109,1732342911728,-3548.97,0.00053085,120]
[343087110,1732342911759,-3548.97,0.00053085,120]
[343087111,1732342911790,-3548.97,0.00053085,120]
[343087112,1732342911819,-3548.97,0.00053085,120]
[343087113,1732342911848,-3548.97,0.00053085,120]
[343087114,1732342911876,-3548.97,0.00053085,120]
[343087115,1732342911907,-424.64016139,0.00053085,120]
[343087116,1732342912830,-4780.0,0.00053,10]
[343087117,1732342912858,-634.95,0.00053082,120]
[343087118,1732342912888,-75.35983861,0.00053085,120]
[343087119,1732342912916,-581.6775102,0.00053085,120]
[343087120,1732342912946,-151.0,0.00053085,120]
[343087121,1732342912975,-151.0,0.00053085,120]
[343087122,1732342913002,-151.0,0.00053085,120]
[343087123,1732342913032,-500.0,0.00053085,120]
[343087124,1732342913063,-361.81981529,0.00053085,120]
[343087125,1732342913092,-500.0,0.00053085,120]
[343087126,1732342913121,-500.0,0.00053085,120]
[343087127,1732342913150,-500.0,0.00053085,120]
[343087128,1732342913180,-500.0,0.00053085,120]
[343087129,1732342913210,-500.0,0.00053085,120]
[343087130,1732342913239,-500.0,0.00053085,120]
[343087131,1732342913269,-2532.3,0.00053085,120]
[343087132,1732342913296,-2532.3,0.00053085,120]
[343087133,1732342913325,-2532.3,0.00053085,120]
[343087134,1732342913353,-2532.3,0.00053085,120]